fUSD/lending_fUSD_20240929
["ID","MTS","AMOUNT","RATE_DAILY","PERIOD"]
[339497842,1727637578173,250.0,9.892e-05,2]
[339497843,1727637746005,174.21,9.896e-05,2]
[339497844,1727637833447,1000.0,9.881e-05,2]
[339497845,1727637845767,250.0,9.892e-05,2]
[339497846,1727637886598,219.13,9.892e-05,2]
[339497847,1727637897039,200.0,9.892e-05,2]
[339497848,1727637910792,230.86149224,9.888e-05,2]
[339497849,1727637976287,23900.0,9.969e-05,2]
[339497850,1727638000241,356.41,9.958e-05,2]
[339497851,1727638100859,420.1107,9.95e-05,2]
[339497852,1727638115785,393.98,8.219e-05,2]
[339497872,1727638231783,-654.85,0.0001,2]
[339497873,1727638231795,-395.15,0.0001,2]
[339497874,1727638231805,-600.0,0.000102,3]
[339497875,1727638231814,-1300.0,0.000103,3]
[339497876,1727638231824,-2000.0,0.000104,3]
[339497877,1727638231834,-393.98,0.00010471,2]
[339497878,1727638231844,-300.0,0.00010499,2]
[339497879,1727638231853,-150.0,0.00010499,2]
[339497880,1727638231863,-150.0,0.000105,2]
[339497881,1727638231873,-428.53,0.000105,2]
[339497882,1727638231883,-150.0,0.000105,2]
[339497883,1727638231892,-358.32,0.000105,2]
[339497884,1727638231902,-150.0,0.000105,2]
[339497885,1727638231912,-428.53,0.000105,2]
[339497886,1727638231922,-150.0,0.000105,2]
[339497887,1727638231932,-150.0,0.000105,2]
[339497888,1727638231941,-150.0,0.000105,2]
[339497889,1727638231952,-428.53,0.000105,2]
[339497890,1727638231961,-150.0,0.000105,2]
[339497891,1727638231971,-552.37,0.000105,2]
[339497892,1727638231980,-150.0,0.000105,2]
[339497893,1727638231990,-255.56,0.000105,2]
[339497894,1727638232001,-428.53,0.000105,2]
[339497895,1727638232011,-206.06,0.000105,2]
[339497896,1727638232020,-86.41964083,0.000105,2]
[339497897,1727638232032,-271.90035917,0.000105,2]
[339497898,1727638232042,-233.77736663,0.000105,2]
[339497899,1727638232054,-124.54263337,0.000105,2]
[339497900,1727638232063,-300.0,0.000105,2]
[339497901,1727638232073,-428.53,0.000105,2]
[339497902,1727638232083,-2700.0,0.000105,3]
[339497903,1727638232093,-715.14,0.000105,2]
[339497904,1727638232103,-1000.0,0.00010599,2]
[339497905,1727638232113,-39238.0139,0.000106,2]
[339497906,1727638232123,-433.61,0.000106,2]
[339497907,1727638232131,-300.0,0.000106,2]
[339497908,1727638232141,-449.62,0.000106,2]
[339497909,1727638232151,-428.53,0.000106,2]
[339497910,1727638232161,-150.0,0.000106,2]
[339497911,1727638232171,-150.0,0.000106,2]
[339497912,1727638232180,-150.0,0.000106,2]
[339497913,1727638232190,-358.32,0.000106,2]
[339497914,1727638232200,-312.93,0.000106,2]
[339497915,1727638232215,-3300.0,0.000106,3]
[339497916,1727638232224,-499.99,0.000106,2]
[339497917,1727638232234,-537.29,0.000106,2]
[339497918,1727638232244,-1005.0,0.000107,2]
[339497919,1727638232255,-600.0,0.000107,3]
[339497920,1727638232264,-2000.0,0.000107,2]
[339497921,1727638232274,-200.0,0.000107,2]
[339497922,1727638232284,-300.9,0.000108,2]
[339497923,1727638232293,-600.0,0.000108,3]
[339497925,1727638232303,-2000.0,0.00010807,2]
[339497927,1727638232312,-200.0,0.00010807,2]
[339497929,1727638232322,-154.62,0.00010849,2]
[339497931,1727638232331,-301.28,0.00010849,2]
[339497933,1727638232340,-150.0,0.00010849,2]
[339497934,1727638232350,-2946.7393,0.00010898,2]
[339497936,1727638232360,-187.37705287,0.00010899,2]
[339497937,1727638232371,-187.37705287,0.00010899,2]
[339497939,1727638232381,-7500.0,0.000109,2]
[339497941,1727638232391,-10214.6905,0.000109,2]
[339497943,1727638232400,-1005.0,0.000109,2]
[339497945,1727638232412,-1000.0,0.000109,2]
[339497947,1727638232422,-1000.0,0.000109,2]
[339497949,1727638232432,-1000.0,0.000109,3]
[339497951,1727638232442,-995.0,0.000109,3]
[339497953,1727638232452,-1000.0,0.000109,2]
[339497955,1727638232461,-1000.0,0.000109,3]
[339497957,1727638232471,-600.0,0.000109,3]
[339497959,1727638232480,-187.37705287,0.000109,2]
[339497976,1727638232705,-19737.06105766,0.000109,2]
[339497977,1727638232716,-500.0,0.00010911,2]
[339497978,1727638232727,-500.0,0.00010912,2]
[339497979,1727638232736,-500.0,0.00010912,2]
[339497980,1727638232746,-2000.0,0.00010915,2]
[339497981,1727638232756,-200.0,0.00010915,2]
[339497982,1727638232766,-179.567,0.00010958,2]
[339497983,1727638232775,-537.93,0.00010958,2]
[339497984,1727638232785,-500.0,0.00010959,2]
[339497985,1727638232794,-2000.0,0.00010959,2]
[339497986,1727638232804,-2000.0,0.00010959,2]
[339497987,1727638232813,-2000.0,0.00010959,2]
[339497988,1727638232823,-2000.0,0.00010959,2]
[339497989,1727638232832,-2000.0,0.00010959,2]
[339497990,1727638232841,-2000.0,0.00010959,2]
[339497991,1727638232851,-2000.0,0.00010959,2]
[339497992,1727638232861,-2000.0,0.00010959,2]
[339497993,1727638232871,-2000.0,0.00010959,2]
[339497994,1727638232881,-2000.0,0.00010959,2]
[339497995,1727638232891,-2000.0,0.00010959,2]
[339497996,1727638232900,-2000.0,0.00010959,2]
[339497997,1727638232910,-500.0,0.00010959,2]
[339497998,1727638232921,-200.0,0.00010959,2]
[339497999,1727638232931,-163.74,0.00010959,2]
[339498000,1727638232942,-159.8,0.00010959,2]
[339498001,1727638232952,-284.9,0.00010959,2]
[339498002,1727638232962,-151.13,0.00010959,2]
[339498003,1727638232971,-2000.0,0.00010959,2]
[339498004,1727638232980,-250.0,0.00010959,2]
[339498005,1727638232990,-554.0,0.0001097,2]
[339498006,1727638232999,-1904.0,0.0001097,2]
[339498007,1727638233009,-807.0,0.0001097,2]
[339498008,1727638233019,-3350.0,0.0001097,2]
[339498009,1727638233029,-1910.0,0.0001097,2]
[339498010,1727638233039,-150.0,0.0001097,2]
[339498011,1727638233049,-1263.0,0.0001097,2]
[339498012,1727638233059,-6277.819,0.0001097,2]
[339498013,1727638233069,-625.0,0.0001097,2]
[339498014,1727638233079,-1151.039,0.0001097,2]
[339498015,1727638233089,-1081.0,0.0001097,2]
[339498016,1727638233099,-500.0,0.00010973,2]
[339498017,1727638233108,-500.0,0.00010973,2]
[339498018,1727638233118,-500.0,0.00010973,2]
[339498019,1727638233128,-151.96,0.00010989,2]
[339498020,1727638233137,-2327.9935147,0.00010998,2]
[339498021,1727638233147,-2316.5734774,0.00010998,2]
[339498022,1727638233159,-54817.2210898,0.00010998,2]
[339498023,1727638233169,-7758.1866229,0.00010998,2]
[339498024,1727638233178,-299806.8503603,0.00010999,2]
[339498025,1727638233191,-1357.03628517,0.00010999,2]
[339498026,1727638237927,-150.0,0.00010959,2]
[339498027,1727638237936,-150.0,0.0001097,2]
[339498028,1727638237946,-821.48036,0.00010999,2]
[339498029,1727638238069,-280.695,0.00010999,2]
[339498030,1727638238081,-660.49,0.00010999,2]
[339498042,1727638239698,-1078.50980756,0.00010779,2]
[339498044,1727638239715,-4536.49019244,0.00010999,2]
[339498045,1727638239833,-2951.7197915,0.00010999,2]
[339498046,1727638239845,-1300.0,0.00010999,2]
[339498047,1727638239857,-1200.9008108,0.00010999,2]
[339498048,1727638239868,-352768.40545461,0.00010999,2]
[339498049,1727638239879,-186696.30956167,0.00010999,2]
[339498050,1727638239890,-744.96847343,0.00010999,2]
[339498051,1727638239916,-904.85065899,0.00010999,2]
[339498052,1727638239928,-4287.70000001,0.00010999,2]
[339498053,1727638239962,-94.28215898,0.00010999,2]
[339498054,1727638239972,-445.55876648,0.00010999,2]
[339498055,1727638239985,-61.57288714,0.00010999,2]
[339498056,1727638239994,-392.30551286,0.00010999,2]
[339498057,1727638240012,-13.5280651,0.00010999,2]
[339498058,1727638240021,-500.0,0.00010999,2]
[339498059,1727638240031,-374.43911995,0.00010999,2]
[339498060,1727638240040,-500.0,0.00010999,2]
[339498061,1727638240050,-500.0,0.00010999,2]
[339498062,1727638240059,-500.0,0.00010999,2]
[339498063,1727638240068,-150.0,0.00011,2]
[339498064,1727638240078,-150.0,0.00011,2]
[339498065,1727638240087,-249.204,0.00011,2]
[339498066,1727638240097,-281.157,0.00011,2]
[339498067,1727638240106,-150.0,0.00011,2]
[339498068,1727638240116,-646.0,0.00011,2]
[339498069,1727638240128,-1154.79994508,0.00011,2]
[339498070,1727638240140,-1593.55023297,0.00011,2]
[339498071,1727638240153,-131636.8927666,0.00011,2]
[339498072,1727638240164,-252.79771129,0.00011,2]
[339498074,1727638242713,-313.60578957,0.0001097,2]
[339498077,1727638242725,-245.39421043,0.0001097,2]
[339498078,1727638242734,-5215.82578957,0.00011,2]
[339498079,1727638242746,-460.32635449,0.00011,2]
[339498080,1727638242757,-405.466,0.00011,2]
[339498081,1727638242768,-3695.10176852,0.00011,2]
[339498082,1727638242783,-1808914.43868129,0.00011,2]
[339498083,1727638242794,-40137.48547443,0.00011,2]
[339498084,1727638242805,-381.16870133,0.00011,2]
[339498085,1727638242843,-1017.6830018,0.00011,2]
[339498086,1727638242854,-1189.88173211,0.00011,2]
[339498087,1727638242865,-446.51173508,0.00011,2]
[339498088,1727638242876,-575.47544634,0.00011,2]
[339498089,1727638242888,-600.64996105,0.00011,2]
[339498090,1727638243113,-1360.0494024,0.00011,2]
[339498091,1727638243129,-7979.52814858,0.00011,2]
[339498092,1727638243141,-96462.0,0.00011,2]
[339498093,1727638243152,-277867.79436085,0.00011,2]
[339498094,1727638243165,-7898.999995,0.00011,2]
[339498095,1727638243180,-50430.68290997,0.00011,2]
[339498096,1727638243191,-84259.46639888,0.00011,2]
[339498097,1727638243200,-6850.88433586,0.00011,2]
[339498098,1727638243238,-290.42245295,0.00011,2]
[339498099,1727638243262,-2156.18686136,0.00011,2]
[339498101,1727638243274,-436.78634993,0.00011,2]
[339498103,1727638243284,-6680.291501,0.00011,2]
[339498104,1727638243297,-281.326473,0.00011,2]
[339498115,1727638245714,-810.0,0.0001097,2]
[339498116,1727638245726,-577.0,0.00011,2]
[339498117,1727638245736,-2617.75103814,0.00011,2]
[339498118,1727638245762,-1728.58052957,0.00011,2]
[339498119,1727638245777,-13064.08927026,0.00011,2]
[339498120,1727638245790,-12129.79429577,0.00011,2]
[339498121,1727638245803,-80000.0,0.00011,2]
[339498122,1727638245891,-619.76020313,0.00011,2]
[339498123,1727638245903,-395.606992,0.00011,2]
[339498124,1727638245916,-796.03984501,0.00011,2]
[339498125,1727638245928,-578.09,0.00011,2]
[339498126,1727638246056,-269.24,0.00011,2]
[339498127,1727638246068,-892744.66025361,0.00011,2]
[339498128,1727638246080,-543.42612714,0.00011,2]
[339498129,1727638246092,-49835.45352628,0.00011,2]
[339498135,1727638636275,155.45,9.965e-05,2]
[339498136,1727638637642,514.87,9.965e-05,2]
[339498137,1727638671187,618.2,9.97e-05,2]
[339498138,1727638674741,383.71,8.219e-05,2]
[339498139,1727638742519,796.76,9.96e-05,2]
[339498140,1727638808600,250.0,9.958e-05,2]
[339498141,1727638957970,150.0,9.991e-05,2]
[339498142,1727638985629,800.0,9.971e-05,2]
[339498143,1727639013387,250.0,9.971e-05,2]
[339498144,1727639021058,239.91,9.988e-05,2]
[339498147,1727639060507,174.21,9.969e-05,2]
[339498149,1727639086727,200.0,9.975e-05,2]
[339498150,1727639106777,150.0,9.888e-05,2]
[339498151,1727639148762,23900.0,9.98e-05,2]
[339498152,1727639334247,379.08,8.219e-05,2]
[339498153,1727639398467,250.0,9.975e-05,2]
[339498159,1727639431860,-1050.0,0.0001,2]
[339498160,1727639431869,-563.86,0.00010009,2]
[339498161,1727639431879,-4.7760065,0.00010049,2]
[339498162,1727639431933,-166.7039935,0.00010049,2]
[339498163,1727639431942,-200.0,0.00010099,2]
[339498164,1727639431952,-379.08,0.00010476,2]
[339498165,1727639431962,-1047.013848,0.0001063,2]
[339498166,1727639431972,-179.149654,0.0001063,2]
[339498167,1727639431981,-150.0,0.0001074,2]
[339498168,1727639431991,-1047.013848,0.00010763,2]
[339498169,1727639432000,-1127.22634023,0.0001078,2]
[339498170,1727639432010,-499.99,0.00010894,2]
[339498171,1727639432020,-300.0,0.00010894,2]
[339498172,1727639432030,-1047.013848,0.00010895,2]
[339498173,1727639432040,-568.42,0.00010895,2]
[339498174,1727639432050,-150.0,0.00010897,2]
[339498175,1727639432060,-59122.11703301,0.00010898,2]
[339498176,1727639432158,-652.76,0.00010898,2]
[339498177,1727639432183,-3062.01576699,0.00010898,2]
[339498178,1727639432192,-2556.0201,0.00010898,2]
[339498179,1727639432202,-157.52590792,0.000109,2]
[339498180,1727639432212,-4672.6599658,0.000109,2]
[339498181,1727639432226,-1462.41130465,0.000109,2]
[339498182,1727639432238,-1364.92872955,0.000109,2]
[339498183,1727639432248,-1039.02447384,0.000109,2]
[339498184,1727639432257,-315.47617442,0.000109,2]
[339498185,1727639432267,-1098.0,0.000109,2]
[339498186,1727639432276,-500.0,0.00010911,2]
[339498187,1727639432285,-500.0,0.00010912,2]
[339498188,1727639432295,-500.0,0.00010912,2]
[339498189,1727639432304,-500.0,0.00010959,2]
[339498190,1727639432315,-2000.0,0.00010959,2]
[339498191,1727639432324,-2000.0,0.00010959,2]
[339498192,1727639432334,-2000.0,0.00010959,2]
[339498193,1727639432343,-2000.0,0.00010959,2]
[339498194,1727639432353,-2000.0,0.00010959,2]
[339498195,1727639432363,-2000.0,0.00010959,2]
[339498196,1727639432372,-500.0,0.00010959,2]
[339498197,1727639432382,-200.0,0.00010959,2]
[339498198,1727639432393,-164.02,0.00010959,2]
[339498199,1727639432403,-250.0,0.00010959,2]
[339498200,1727639432413,-176.93,0.00010959,2]
[339498201,1727639432422,-2000.0,0.00010959,2]
[339498202,1727639432432,-162.56,0.00010959,2]
[339498203,1727639432441,-484.438,0.00010959,2]
[339498204,1727639432450,-1263.0,0.0001097,2]
[339498205,1727639432460,-625.0,0.0001097,2]
[339498206,1727639432470,-933.0,0.0001097,2]
[339498207,1727639432479,-810.0,0.0001097,2]
[339498208,1727639432488,-556.0,0.0001097,2]
[339498209,1727639432499,-1126.495,0.0001097,2]
[339498210,1727639432509,-552.392,0.0001097,2]
[339498211,1727639432518,-2944.105,0.0001097,2]
[339498212,1727639432529,-699.64,0.0001097,2]
[339498213,1727639432540,-543.138,0.0001097,2]
[339498214,1727639432551,-150.0,0.0001097,2]
[339498215,1727639432561,-150.0,0.0001097,2]
[339498216,1727639432569,-150.0,0.0001097,2]
[339498217,1727639432580,-483.082,0.0001097,2]
[339498218,1727639432589,-500.0,0.00010973,2]
[339498219,1727639432598,-500.0,0.00010973,2]
[339498220,1727639432607,-8970.0898975,0.00010994,2]
[339498221,1727639432617,-62350.799881,0.00010994,2]
[339498222,1727639432626,-6761.9023344,0.00010994,2]
[339498223,1727639432635,-500.0,0.00010999,2]
[339498224,1727639432644,-520.0,0.00011,2]
[339498225,1727639432653,-1583089.04963317,0.00011,2]
[339498226,1727639432665,-4537.80597455,0.00011,2]
[339498229,1727639437915,-500.0,0.00010973,2]
[339498230,1727639437926,-76.25,0.00011,2]
[339498231,1727639437938,-1013.09905088,0.00011,2]
[339498232,1727639437971,-336.86532243,0.00011,2]
[339498233,1727639438029,-913.8965287,0.00011,2]
[339498234,1727639438109,-417828.1532525,0.00011,2]
[339498245,1727639439940,-150.0,0.0001097,2]
[339498246,1727639439950,-2468.12992597,0.00011,2]
[339498247,1727639439963,-6896.13746571,0.00011,2]
[339498248,1727639440109,-3384.914316,0.00011,2]
[339498249,1727639440121,-517.4519315,0.00011,2]
[339498250,1727639440132,-1664.56125804,0.00011,2]
[339498258,1727639443016,-259.15105695,0.00011,2]
[339498259,1727639443031,-3348.02043502,0.00011,2]
[339498260,1727639443225,-1337.72872409,0.00011,2]
[339498280,1727639445944,-16498.59365816,0.00011,2]
[339498281,1727639445956,-7661.05978662,0.00011,2]
[339498282,1727639445965,-207.04552861,0.00011,2]
[339498283,1727639445978,-3135.70722599,0.00011,2]
[339498284,1727639446053,-473.7829848,0.00011,2]
[339498285,1727639446062,-24563.32894237,0.00011,2]
[339498286,1727639446168,-268.41042458,0.00011,2]
[339498288,1727639460987,200.0,0.00012,20]
[339498293,1727639955358,370.63,8.219e-05,2]
[339498294,1727639973391,250.0,9.984e-05,2]
[339498295,1727640060515,640.0,9.984e-05,2]
[339498296,1727640127669,779.08,9.95e-05,2]
[339498297,1727640138616,250.0,9.947e-05,2]
[339498299,1727640166144,200.0,9.974e-05,2]
[339498302,1727640302692,150.0,9.888e-05,2]
[339498303,1727640321859,150.0,9.888e-05,2]
[339498304,1727640326778,150.00000001,9.888e-05,2]
[339498305,1727640416032,203.24,9.95e-05,2]
[339498317,1727640550984,366.25,8.219e-05,2]
[339498318,1727640586579,155.45,9.974e-05,2]
[339498319,1727640588210,250.0,9.974e-05,2]
[339498329,1727640632015,-900.0,9.993e-05,2]
[339498330,1727640632122,-23000.0,9.993e-05,2]
[339498331,1727640632132,-300.93,0.00010001,2]
[339498332,1727640632143,-411.89,0.00010002,2]
[339498333,1727640632153,-376.47,0.00010041,2]
[339498334,1727640632163,-170.42,0.00010095,2]
[339498335,1727640632173,-360.0,0.00010434,2]
[339498336,1727640632183,-150.0,0.00010437,2]
[339498337,1727640632192,-499.99,0.00010437,2]
[339498338,1727640632202,-366.25,0.00010475,2]
[339498339,1727640632211,-150.0,0.00010868,2]
[339498340,1727640632221,-4805.093,0.00010894,2]
[339498341,1727640632232,-509.5205,0.00010894,2]
[339498342,1727640632242,-15997.37,0.000109,2]
[339498343,1727640632252,-364.7506,0.000109,2]
[339498344,1727640632263,-157.52590792,0.000109,2]
[339498345,1727640632273,-150.0,0.00010911,2]
[339498346,1727640632283,-500.0,0.00010912,2]
[339498347,1727640632292,-2000.0,0.00010959,2]
[339498348,1727640632302,-500.0,0.00010959,2]
[339498349,1727640632312,-200.0,0.00010959,2]
[339498350,1727640632322,-159.8,0.00010959,2]
[339498351,1727640632333,-250.0,0.00010959,2]
[339498352,1727640632343,-2000.0,0.00010959,2]
[339498353,1727640632358,-270.63,0.00010959,2]
[339498354,1727640632368,-438.314,0.00010959,2]
[339498355,1727640632379,-150.0,0.0001097,2]
[339498356,1727640632389,-150.0,0.0001097,2]
[339498357,1727640632399,-150.0,0.0001097,2]
[339498358,1727640632409,-152.045,0.0001097,2]
[339498359,1727640632419,-150.0,0.0001097,2]
[339498360,1727640632429,-1263.0,0.0001097,2]
[339498361,1727640632439,-625.0,0.0001097,2]
[339498362,1727640632449,-810.0,0.0001097,2]
[339498363,1727640632459,-642.606,0.0001097,2]
[339498364,1727640632469,-500.0,0.00010973,2]
[339498365,1727640632482,-287.83407916,0.00010986,2]
[339498366,1727640632492,-1453.545,0.00010994,2]
[339498367,1727640632504,-5736.68791294,0.00010994,2]
[339498368,1727640632526,-700.0,0.00010994,2]
[339498369,1727640632544,-104.78718476,0.00010994,2]
[339498370,1727640632555,-3509.8918325,0.00010994,2]
[339498371,1727640632565,-3072.7287706,0.00010994,2]
[339498372,1727640632574,-646.16312009,0.00010999,2]
[339498373,1727640632587,-353.83687991,0.00010999,2]
[339498374,1727640632597,-439.6196,0.00010999,2]
[339498375,1727640632607,-1000.0,0.00011,3]
[339498376,1727640632617,-8119.44352009,0.00011,2]
[339498377,1727640632629,-1224.07084925,0.00011,2]
[339498381,1727640638051,-8974.95150827,0.00011,2]
[339498382,1727640638063,-1559.36045752,0.00011,2]
[339498383,1727640638075,-303.35,0.00011,2]
[339498384,1727640638108,-391651.82689281,0.00011,2]
[339498385,1727640638118,-203107.63283409,0.00011,2]
[339498386,1727640638129,-1226623.18751965,0.00011,2]
[339498387,1727640638163,-2399522.89349069,0.00011,2]
[339498388,1727640638174,-1236.51825324,0.00011,2]
[339498389,1727640638215,-305.07545363,0.00011,2]
[339498390,1727640638228,-979.47576339,0.00011,2]
[339498391,1727640638268,-6028.6116,0.00011,2]
[339498392,1727640638280,-7531.248,0.00011,2]
[339498393,1727640638323,-46041.15382601,0.00011,2]
[339498395,1727640638334,-4677.82886025,0.00011,2]
[339498398,1727640640004,-316.48710845,0.00011,2]
[339498399,1727640641731,-981.4584,0.00011,2]
[339498400,1727640641750,-275.13883005,0.00011,2]
[339498401,1727640641761,-385.66261705,0.00011,2]
[339498402,1727640641857,-1303.47005207,0.00011,2]
[339498403,1727640641905,-547.19971705,0.00011,2]
[339498404,1727640641916,-1985.51674603,0.00011,2]
[339498405,1727640641928,-27000.0,0.00011,2]
[339498408,1727640643174,-274.23999998,0.00011,2]
[339498409,1727640643185,-5036.45349993,0.00011,2]
[339498410,1727640643199,-2909.44536639,0.00011,2]
[339498411,1727640643210,-2947.71714156,0.00011,2]
[339498412,1727640643391,-4833.55668014,0.00011,2]
[339498413,1727640643448,-5819.65871025,0.00011,2]
[339498414,1727640643460,-381093.9641577,0.00011,2]
[339498603,1727640646070,-3118.6163164,0.00011,2]
[339498610,1727640646126,-17462.18549408,0.00011,2]
[339498612,1727640646137,-47787.69959999,0.00011,2]
[339498615,1727640646148,-3464.78695368,0.00011,2]
[339498617,1727640646159,-335.30570427,0.00011,2]
[339498620,1727640646180,-3210.22581902,0.00011,2]
[339498622,1727640646191,-361.55571279,0.00011,2]
[339498628,1727640646241,-280272.76756807,0.00011,2]
[339498630,1727640646252,-26434.4,0.00011,2]
[339498635,1727640646295,-692.17038355,0.00011,2]
[339498638,1727640646307,-1670.45026306,0.00011,2]
[339498643,1727640646349,-19441.66142464,0.00011,2]
[339498645,1727640646363,-13115.02648936,0.00011,2]
[339498648,1727640646374,-1208.0,0.00011,2]
[339498650,1727640646385,-16529.26797814,0.00011,2]
[339498914,1727640975830,6373.47614335,9.988e-05,2]
[339498915,1727641085730,358.23,8.219e-05,2]
[339498916,1727641206668,155.41,9.969e-05,2]
[339498917,1727641211554,250.0,9.969e-05,2]
[339498918,1727641262369,278.2,9.942e-05,2]
[339498919,1727641332696,1000.0,9.97e-05,2]
[339498920,1727641369410,1585.02,9.971e-05,2]
[339498921,1727641434931,23900.0,9.958e-05,2]
[339498922,1727641653889,-250.18937,9.992e-05,2]
[339498923,1727641692295,250.0,9.983e-05,2]
[339498945,1727641832352,-50.98063,9.992e-05,2]
[339498946,1727641832361,-248.80081014,9.994e-05,2]
[339498947,1727641832372,-5396.27208922,9.994e-05,2]
[339498948,1727641832382,-369.0,9.994e-05,2]
[339498949,1727641832393,-955.37507359,9.994e-05,2]
[339498950,1727641832418,-28.15202705,9.994e-05,2]
[339498951,1727641832427,-912.77,9.997e-05,2]
[339498952,1727641832436,-345.79542601,0.0001,2]
[339498953,1727641832449,-704.20457399,0.0001,2]
[339498954,1727641832458,-342.35,0.00010003,2]
[339498955,1727641832468,-540.25,0.00010048,2]
[339498956,1727641832477,-171.33,0.00010088,2]
[339498957,1727641832486,-156.62,0.00010467,2]
[339498958,1727641832495,-358.23,0.00010477,2]
[339498959,1727641832504,-499.99,0.00010899,2]
[339498960,1727641832513,-150.0,0.00010899,2]
[339498961,1727641832524,-921.97,0.00010899,2]
[339498962,1727641832533,-302.59,0.000109,2]
[339498963,1727641832543,-2901.4902,0.000109,2]
[339498964,1727641832552,-1148.81972911,0.000109,2]
[339498965,1727641832563,-33654.61747089,0.000109,2]
[339498966,1727641832573,-1075.8716,0.000109,2]
[339498967,1727641832582,-7500.0,0.000109,2]
[339498968,1727641832591,-264.8041,0.000109,2]
[339498969,1727641832600,-1451.1123,0.000109,2]
[339498970,1727641832609,-39014.1608,0.000109,2]
[339498971,1727641832618,-633.2,0.000109,2]
[339498972,1727641832627,-157.52590792,0.000109,2]
[339498973,1727641832637,-384.8238792,0.000109,2]
[339498974,1727641832646,-500.0,0.00010911,2]
[339498975,1727641832655,-500.0,0.00010912,2]
[339498976,1727641832664,-500.0,0.00010959,2]
[339498977,1727641832673,-500.0,0.00010959,2]
[339498978,1727641832682,-2000.0,0.00010959,2]
[339498979,1727641832691,-500.0,0.00010959,2]
[339498980,1727641832703,-200.0,0.00010959,2]
[339498981,1727641832713,-151.59,0.00010959,2]
[339498983,1727641832722,-2000.0,0.00010959,2]
[339498985,1727641832731,-250.0,0.00010959,2]
[339498987,1727641832741,-164.02,0.00010959,2]
[339498988,1727641832750,-398.722,0.00010959,2]
[339498990,1727641832759,-165.536,0.00010959,2]
[339498992,1727641832768,-438.223,0.0001097,2]
[339498994,1727641832777,-804.0,0.0001097,2]
[339498996,1727641832786,-344.166,0.0001097,2]
[339498998,1727641832797,-150.0,0.0001097,2]
[339499000,1727641832807,-746.309,0.0001097,2]
[339499002,1727641832816,-932.0,0.0001097,2]
[339499003,1727641832825,-500.0,0.00010973,2]
[339499004,1727641832834,-151.51,0.0001099,2]
[339499005,1727641832843,-42925.1696407,0.00010994,2]
[339499006,1727641832851,-4548.3600237,0.00010994,2]
[339499007,1727641832861,-2770.9528134,0.00010994,2]
[339499008,1727641832871,-304.3733297,0.00010994,2]
[339499009,1727641832880,-4089.3598833,0.00010994,2]
[339499010,1727641833115,-6362.8496818,0.00010994,2]
[339499011,1727641833125,-213.33630603,0.00010999,2]
[339499012,1727641833134,-282.02587164,0.00010999,2]
[339499013,1727641833143,-2268.0,0.00010999,2]
[339499014,1727641833153,-1000.0,0.00010999,2]
[339499015,1727641833162,-500.18742062,0.00010999,2]
[339499016,1727641833171,-500.0,0.00010999,2]
[339499017,1727641833180,-500.0,0.00010999,2]
[339499018,1727641833189,-500.0,0.00010999,2]
[339499019,1727641833200,-500.0,0.00010999,2]
[339499020,1727641833209,-500.0,0.00010999,2]
[339499021,1727641833218,-436.20307847,0.00010999,2]
[339499022,1727641833227,-500.0,0.00010999,2]